bitfinex/quotes_BTCUSD_20250602
["timestamp","ask_amount","ask_price","bid_price","bid_amount"]
[1748878205421,0.03931957,104380.0,104370.0,0.63378816]
[1748878205641,0.04889985,104380.0,104370.0,0.63378825]
[1748878205881,0.01057973,104380.0,104370.0,0.65294983]
[1748878206121,0.01057973,104380.0,104370.0,1.23009266]
[1748878206122,0.001,104380.0,104370.0,1.23009266]
[1748878206352,0.001,104380.0,104370.0,0.82955297]
[1748878206797,0.11865781,104400.0,104390.0,0.26453256]
[1748878207060,0.10908,104400.0,104390.0,0.63179137]
[1748878207271,0.11865781,104400.0,104390.0,0.63179137]
[1748878207488,0.10908,104400.0,104390.0,0.63175137]
[1748878207945,0.10908,104400.0,104390.0,0.30711137]
[1748878208183,0.10908,104400.0,104390.0,0.63159137]
[1748878208648,0.11865771,104400.0,104390.0,0.63159137]
[1748878208877,0.11865771,104400.0,104390.0,0.27458923]
[1748878208878,0.10908,104400.0,104390.0,0.27458923]
[1748878209116,0.12823589,104400.0,104390.0,0.63722577]
[1748878209324,0.1292358,104400.0,104390.0,0.63722577]
[1748878209569,0.11965781,104400.0,104390.0,0.63722577]
[1748878209795,0.1292358,104400.0,104390.0,0.63722577]
[1748878211060,0.11008,104400.0,104390.0,0.63722577]
[1748878211497,0.001,104400.0,104390.0,0.98101083]
[1748878211722,0.001,104400.0,104390.0,1.07686513]
[1748878211962,0.001,104400.0,104390.0,1.08603834]
[1748878212208,0.001,104400.0,104390.0,1.08543834]
[1748878212422,0.001,104400.0,104390.0,1.07626513]
[1748878212639,0.02872883,104420.0,104410.0,0.09147753]
[1748878212862,0.02887357,104420.0,104410.0,0.61632741]
[1748878213732,0.02887357,104420.0,104410.0,0.62590466]
[1748878213927,0.02887357,104420.0,104410.0,0.62690466]
[1748878214140,0.02887357,104420.0,104410.0,0.62790466]
[1748878214572,0.02887357,104420.0,104410.0,0.61832741]
[1748878214985,0.03845027,104420.0,104410.0,0.28503006]
[1748878215192,0.25129652,104420.0,104410.0,0.0339]
[1748878215409,0.25129652,104420.0,104410.0,0.002]
[1748878215728,0.25129652,104420.0,104410.0,0.0177]
[1748878215951,0.25129652,104420.0,104410.0,0.002]
[1748878215952,0.35917652,104420.0,104410.0,0.002]
[1748878216161,0.25129652,104420.0,104410.0,0.001]
[1748878216365,0.37405082,104420.0,104410.0,0.001]
[1748878216568,0.20112997,104410.0,104400.0,0.0157]
[1748878216784,0.01915432,104410.0,104400.0,0.22642732]
[1748878216988,0.23943862,104410.0,104400.0,0.23274933]
[1748878217207,0.22028475,104410.0,104400.0,0.0316]
[1748878218912,0.2107275,104400.0,104390.0,0.0157]
[1748878219587,0.20114924,104400.0,104390.0,0.0157]
[1748878220194,0.20114924,104400.0,104390.0,0.0167]
[1748878220628,0.20114924,104400.0,104390.0,0.0177]
[1748878221294,0.29700354,104400.0,104390.0,0.002]
[1748878221505,0.35664715,104400.0,104390.0,0.002]
[1748878222151,0.20116869,104390.0,104380.0,0.083]
[1748878222431,0.20116869,104390.0,104380.0,0.0164]
[1748878222653,0.20118777,104380.0,104370.0,0.0161]
[1748878222860,0.20118777,104380.0,104370.0,0.4065]
[1748878223061,0.01915956,104380.0,104370.0,0.61728825]
[1748878223264,0.01915956,104380.0,104370.0,0.60770723]
[1748878223478,0.22034733,104380.0,104370.0,0.0825]
[1748878223695,0.241428,104380.0,104370.0,0.0164]
[1748878223888,0.01916305,104360.0,104350.0,0.5697139]
[1748878224091,0.04790849,104360.0,104350.0,0.89429919]
[1748878224301,0.04790849,104360.0,104350.0,0.91978204]
[1748878224302,0.03832646,104360.0,104350.0,0.91978204]
[1748878224501,0.03832664,104360.0,104350.0,0.03114529]
[1748878224684,0.02874471,104360.0,104350.0,0.56053597]
[1748878224861,0.02874471,104360.0,104350.0,0.96970131]
[1748878225275,0.02874471,104360.0,104350.0,0.96011873]
[1748878225276,0.05799285,104360.0,104350.0,0.96011873]
[1748878225450,0.02874471,104360.0,104350.0,0.9697014]
[1748878225652,0.03832655,104360.0,104350.0,0.97928398]
[1748878225859,0.03832655,104360.0,104350.0,0.98728398]
[1748878226090,0.02874471,104360.0,104350.0,0.99686647]
[1748878226292,0.00958148,104360.0,104350.0,0.99686647]
[1748878226490,0.01916213,104370.0,104360.0,0.28282651]
[1748878226730,0.21078807,104370.0,104360.0,0.09118221]
[1748878226931,0.21078807,104370.0,104360.0,0.0816]
[1748878227299,0.20120714,104370.0,104360.0,0.0816]
[1748878227503,0.20120714,104370.0,104360.0,0.0846]
[1748878228175,0.33940894,104370.0,104360.0,0.003]
[1748878228789,0.0958543,104370.0,104360.0,0.1966443]
[1748878228962,0.02874278,104370.0,104360.0,0.23552642]
[1748878229204,0.22036872,104370.0,104360.0,0.0343]
[1748878229411,0.02974278,104370.0,104360.0,0.0313]
[1748878229608,0.05776768,104370.0,104360.0,0.0313]
[1748878229979,0.24939362,104370.0,104360.0,0.0163]
[1748878230221,0.01916332,104360.0,104350.0,0.95669385]
[1748878230431,0.0287447,104360.0,104350.0,0.9758591]
[1748878230643,0.27433179,104370.0,104360.0,0.2066443]
[1748878230834,0.05776832,104370.0,104360.0,0.21622651]
[1748878231166,0.04818703,104370.0,104360.0,0.22580863]
[1748878231427,0.23981297,104370.0,104360.0,0.21622651]
[1748878231654,0.2108444,104350.0,104330.0,0.26698431]
[1748878231884,0.21084849,104340.0,104330.0,0.06618409]
[1748878232123,0.00958331,104340.0,104330.0,0.06618409]
[1748878232350,0.0575293,104340.0,104330.0,0.08218409]
[1748878232581,0.06711316,104340.0,104330.0,0.40822409]
[1748878232813,0.2587942,104340.0,104330.0,0.40822409]
[1748878233046,0.24921098,104340.0,104330.0,0.40822409]
[1748878233280,0.0423837,104340.0,104330.0,0.97359729]
[1748878233515,0.29710044,104350.0,104340.0,0.015]
[1748878233516,0.16399632,104350.0,104340.0,0.015]
[1748878233760,0.16399632,104350.0,104340.0,0.13898]
[1748878233761,0.028778,104350.0,104340.0,0.13898]
[1748878234005,0.028778,104350.0,104340.0,0.41319714]
[1748878234233,0.25797409,104370.0,104360.0,0.04068221]
[1748878234470,0.28674309,104370.0,104360.0,0.3571]
[1748878234707,0.29632429,104370.0,104360.0,0.36668221]
[1748878234939,0.32912808,104370.0,104360.0,0.3571]
[1748878235637,0.31954761,104370.0,104360.0,0.3571]
[1748878235861,0.30996696,104370.0,104360.0,0.3571]
[1748878236107,0.32796696,104370.0,104360.0,0.3591]
[1748878236339,0.32796696,104370.0,104360.0,0.3571]
[1748878236340,0.30996696,104370.0,104360.0,0.3571]
[1748878236567,0.31296696,104370.0,104360.0,0.3571]
[1748878236804,0.30338603,104370.0,104360.0,0.3571]
[1748878237027,0.34126237,104370.0,104360.0,0.326]
[1748878237707,0.29080492,104370.0,104360.0,0.326]
[1748878238147,0.28122363,104370.0,104350.0,0.28069714]
[1748878238374,0.21080808,104360.0,104350.0,0.0825]
[1748878238631,0.22039001,104360.0,104350.0,0.52560313]
[1748878238857,0.22039001,104360.0,104350.0,0.51602]
[1748878239084,0.22039001,104360.0,104350.0,0.46602]
[1748878239315,0.01916359,104360.0,104350.0,0.70768267]
[1748878239549,0.2203901,104360.0,104350.0,0.7182658]
[1748878239777,0.01916304,104360.0,104350.0,0.73163371]
[1748878239973,0.02874497,104360.0,104350.0,0.73163381]
[1748878240247,0.03832709,104360.0,104350.0,0.72205086]
[1748878240469,0.28813183,104370.0,104360.0,0.0157]
[1748878242583,0.08692478,104370.0,104360.0,0.2236443]
[1748878242832,0.03280379,104370.0,104360.0,0.75161103]
[1748878243529,0.01915588,104400.0,104390.0,0.20116869]
[1748878243769,0.22030585,104400.0,104390.0,0.82085946]
[1748878243998,0.22030585,104400.0,104390.0,0.81128]
[1748878244222,0.21072768,104400.0,104390.0,0.81128]
[1748878244705,0.22947049,104400.0,104390.0,0.37676]
[1748878244916,0.2296152,104400.0,104390.0,0.8114]
[1748878245375,0.23403666,104400.0,104390.0,0.36186]
[1748878245587,0.2203476,104380.0,104370.0,0.0819]
[1748878245791,0.2203476,104380.0,104370.0,1.05770714]
[1748878245993,0.06144147,104380.0,104370.0,1.05770705]
[1748878246391,0.05186119,104380.0,104370.0,1.06728807]
[1748878246619,0.06144138,104380.0,104370.0,1.076869]
[1748878246847,0.06144138,104380.0,104370.0,1.05870705]
[1748878247258,0.07102175,104380.0,104370.0,1.05870705]
[1748878247461,0.07102175,104380.0,104370.0,1.00870705]
[1748878247663,0.05186119,104380.0,104370.0,1.06828798]
[1748878247882,0.03270145,104380.0,104370.0,1.07786872]
[1748878248094,0.03270145,104380.0,104370.0,1.09123443]
[1748878248307,0.24877566,104400.0,104390.0,0.0152]
[1748878248527,0.24877566,104400.0,104390.0,0.34076]
[1748878248761,0.23919758,104400.0,104390.0,0.34076]
[1748878248968,0.23919758,104400.0,104390.0,0.32556]
[1748878249177,0.31847311,104400.0,104390.0,0.32556]
[1748878249591,0.31947311,104400.0,104390.0,0.32556]
[1748878249795,0.32147311,104400.0,104390.0,0.32556]
[1748878250856,0.27551397,104400.0,104390.0,0.32556]
[1748878252139,0.27551397,104400.0,104390.0,0.34216]
[1748878252341,0.08393861,104400.0,104390.0,0.56830787]
[1748878252545,0.27550949,104400.0,104390.0,0.56830805]
[1748878252770,0.27550949,104400.0,104390.0,0.35756]
[1748878253291,0.26593141,104400.0,104390.0,0.32556]
[1748878253497,0.31552174,104400.0,104390.0,0.32556]
[1748878253782,0.21074768,104390.0,104380.0,0.0165]
[1748878253980,0.22034787,104380.0,104370.0,0.38068129]
[1748878254112,0.22034787,104380.0,104370.0,0.47982]
[1748878254325,0.21076805,104380.0,104370.0,0.0311]
[1748878254567,0.21076805,104380.0,104370.0,0.51458]
[1748878255590,0.22034769,104380.0,104370.0,0.51458]
[1748878255743,0.22034769,104380.0,104370.0,0.18978]
[1748878255978,0.22034769,104380.0,104370.0,0.51454]
[1748878256772,0.22034769,104380.0,104370.0,0.51554]
[1748878258280,0.20118777,104380.0,104370.0,0.51554]
[1748878258488,0.20118777,104380.0,104370.0,0.50034]
[1748878258846,0.20118777,104380.0,104370.0,0.51774]
[1748878259222,0.19874777,104380.0,104370.0,0.51774]
[1748878259585,0.02630039,104380.0,104370.0,0.51774]
[1748878259957,0.01915956,104380.0,104370.0,0.70936594]
[1748878260196,0.01915946,104380.0,104370.0,0.72852807]
[1748878260385,0.02873947,104380.0,104370.0,0.7381089]
[1748878260547,0.01915946,104380.0,104370.0,0.7381089]
[1748878260765,0.028765,104390.0,104380.0,0.25324787]
[1748878260999,0.03834372,104390.0,104380.0,0.26282788]
[1748878261203,0.01915763,104390.0,104380.0,0.26282788]
[1748878261412,0.01915763,104390.0,104380.0,0.30324815]
[1748878261613,0.08093842,104400.0,104390.0,0.2171685]
[1748878261817,0.09051687,104400.0,104390.0,0.5409685]
[1748878261991,0.31085175,104400.0,104390.0,0.54096869]
[1748878262193,0.30127376,104400.0,104390.0,0.33968]
[1748878262551,0.34244015,104400.0,104390.0,0.32368]
[1748878262993,0.34444015,104400.0,104390.0,0.32368]
[1748878263211,0.34444015,104400.0,104390.0,0.34008]
[1748878263681,0.34544015,104400.0,104390.0,0.34008]
[1748878263900,0.2946955,104400.0,104390.0,0.54124859]
[1748878264103,0.30427367,104400.0,104390.0,0.35648]
[1748878264316,0.09354617,104400.0,104390.0,0.57680678]
[1748878264527,0.07435988,104400.0,104390.0,0.63638559]
[1748878264723,0.09351577,104400.0,104390.0,0.63638559]
[1748878264931,0.06478217,104400.0,104390.0,0.63638559]
[1748878265100,0.07436007,104400.0,104390.0,0.64017065]
[1748878265301,0.08393815,104400.0,104390.0,0.64017065]
[1748878265503,0.09351632,104400.0,104390.0,0.63059193]
[1748878265720,0.10309486,104400.0,104390.0,0.62101302]
[1748878265907,0.10309477,104400.0,104390.0,0.6305922]
[1748878266111,0.09051632,104400.0,104390.0,0.6401712]
[1748878266313,0.28208775,104400.0,104390.0,0.0828]
[1748878266559,0.32275019,104400.0,104390.0,0.11068]
[1748878266710,0.32275019,104400.0,104390.0,0.4344]
[1748878267308,0.27250976,104400.0,104390.0,0.4334]
[1748878267661,0.27350976,104400.0,104390.0,0.4334]
[1748878267785,0.27350976,104400.0,104390.0,0.10968]
[1748878267985,0.27350976,104400.0,104390.0,0.4334]
[1748878268441,0.20116869,104390.0,104380.0,0.0829]
[1748878268653,0.20116869,104390.0,104380.0,0.51514]
[1748878268856,0.21074787,104390.0,104380.0,0.51514]
[1748878271219,0.21074787,104390.0,104380.0,0.0829]
[1748878271379,0.21074787,104390.0,104380.0,0.51374]
[1748878273610,0.21074787,104390.0,104380.0,0.1903]
[1748878273805,0.21076787,104380.0,104370.0,0.0819]
[1748878274024,0.21076787,104380.0,104370.0,0.1229]
[1748878274224,0.21076787,104380.0,104370.0,0.1074]
[1748878274471,0.21076787,104380.0,104370.0,0.43084]
[1748878274674,0.23953687,104380.0,104370.0,0.43084]
[1748878275120,0.23953687,104380.0,104370.0,0.43184]
[1748878275365,0.23953687,104380.0,104370.0,0.44684]
[1748878275772,0.23953687,104380.0,104370.0,0.43184]
[1748878276094,0.23953687,104380.0,104370.0,0.43284]
[1748878276300,0.28264948,104380.0,104370.0,0.43284]
[1748878276740,0.23953687,104380.0,104370.0,0.43284]
[1748878277143,0.23953687,104380.0,104370.0,0.44854]
[1748878277710,0.22995677,104380.0,104370.0,0.44854]
[1748878279457,0.22995677,104380.0,104370.0,0.34114]
[1748878279619,0.22995677,104380.0,104370.0,0.32544]
[1748878279825,0.26616964,104380.0,104370.0,0.32544]
[1748878280448,0.26616964,104380.0,104370.0,0.002]
[1748878280687,0.3669846,104380.0,104360.0,0.1227]
[1748878280901,0.3669846,104380.0,104360.0,0.1074]
[1748878280902,0.29706135,104370.0,104360.0,0.1074]
[1748878281108,0.29706135,104370.0,104360.0,0.43084]
[1748878281334,0.21078807,104370.0,104360.0,0.44694]
[1748878281527,0.21078807,104370.0,104360.0,0.46264]
[1748878282265,0.21078807,104370.0,104360.0,0.44694]
[1748878282996,0.21078807,104370.0,104360.0,0.1084]
[1748878283207,0.21078807,104370.0,104360.0,0.1094]
[1748878283379,0.36575377,104370.0,104360.0,0.002]
[1748878284625,0.39315377,104370.0,104360.0,0.002]
[1748878285385,0.36575377,104370.0,104360.0,0.002]
[1748878285613,0.32118322,104370.0,104360.0,0.0184]
[1748878286025,0.32118322,104370.0,104360.0,0.0164]
[1748878286367,0.32218322,104370.0,104360.0,0.0326]
[1748878286992,0.21178807,104370.0,104360.0,0.0326]
[1748878287193,0.21278807,104370.0,104360.0,0.0326]
[1748878288460,0.02116176,104370.0,104360.0,0.23382642]
[1748878288659,0.02116176,104370.0,104360.0,0.30677489]
[1748878288660,0.01158047,104370.0,104360.0,0.30677489]
[1748878289012,0.002,104370.0,104360.0,0.30677489]
[1748878289477,0.01158047,104370.0,104360.0,0.31635664]
[1748878289624,0.02116112,104370.0,104360.0,0.31635664]
[1748878289837,0.01158047,104370.0,104360.0,0.31635664]
[1748878290036,0.02116112,104370.0,104360.0,0.31635664]
[1748878291159,0.02116112,104370.0,104360.0,0.44770581]
[1748878291160,0.002,104370.0,104360.0,0.44770581]
[1748878291351,0.002,104370.0,104360.0,0.41221094]
[1748878292168,0.02116112,104370.0,104360.0,0.41221094]
[1748878292811,0.03074195,104370.0,104360.0,0.41221094]
[1748878293029,0.03074195,104370.0,104360.0,0.40262937]
[1748878293242,0.04032297,104370.0,104360.0,0.40262937]
[1748878293446,0.02116112,104370.0,104360.0,0.41221094]
[1748878293650,0.21011859,104380.0,104370.0,0.0317]
[1748878293847,0.20118847,104380.0,104370.0,0.35514]
[1748878295006,0.20318847,104380.0,104370.0,0.35514]
[1748878295458,0.20518847,104380.0,104370.0,0.35514]
[1748878296173,0.20120705,104370.0,104360.0,0.0317]
[1748878296456,0.20122633,104360.0,104350.0,0.13914]
[1748878296755,0.20122633,104360.0,104350.0,0.49678]
[1748878297479,0.21080826,104360.0,104350.0,0.51208]
[1748878297689,0.21080826,104360.0,104350.0,0.51308]
[1748878297900,0.20122633,104360.0,104350.0,0.51308]
[1748878298123,0.20122633,104360.0,104350.0,0.51508]
[1748878298515,0.20122633,104360.0,104350.0,0.19164]
[1748878298715,0.20122633,104360.0,104350.0,0.51508]
[1748878298716,0.00958175,104360.0,104350.0,0.51508]
[1748878298944,0.00958166,104360.0,104350.0,0.74567335]
[1748878299132,0.01916314,104360.0,104350.0,0.73609105]
[1748878299267,0.03832701,104360.0,104350.0,0.72650856]
[1748878299671,0.03832701,104360.0,104350.0,0.71692571]
[1748878299876,0.02874498,104360.0,104350.0,0.72650856]
[1748878300075,0.03832701,104360.0,104350.0,0.73609132]
[1748878300733,0.18895642,104370.0,104360.0,0.0328]
[1748878300940,0.18904881,104370.0,104360.0,0.0328]
[1748878301853,0.20122651,104360.0,104350.0,0.18814]
[1748878302235,0.20122651,104360.0,104350.0,0.51158]
[1748878302447,0.21080854,104360.0,104350.0,0.52116304]
[1748878302662,0.03832765,104360.0,104350.0,0.72240866]
[1748878302886,0.04790986,104360.0,104350.0,0.72240866]
[1748878303105,0.23955416,104360.0,104350.0,0.71282571]
[1748878303336,0.2299725,104360.0,104350.0,0.72240866]
[1748878303596,0.2299725,104360.0,104350.0,0.72340866]
[1748878303849,0.2299725,104360.0,104350.0,0.72440866]
[1748878304734,0.0383282,104360.0,104350.0,0.72440866]
[1748878305179,0.2299725,104360.0,104350.0,0.72440866]
[1748878305407,0.1986301,104370.0,104350.0,0.74357344]
[1748878305615,0.1986301,104370.0,104360.0,0.23172633]
[1748878305616,0.02883544,104370.0,104360.0,0.23172633]
[1748878305816,0.22046138,104370.0,104360.0,0.0305]
[1748878305972,0.22046138,104370.0,104360.0,0.04008221]
[1748878306531,0.22046138,104370.0,104360.0,0.0305]
[1748878307598,0.17946138,104370.0,104360.0,0.0305]
[1748878307817,0.1890424,104370.0,104360.0,0.0305]
[1748878308540,0.1890424,104370.0,104360.0,0.23172651]
[1748878308778,0.19862369,104370.0,104360.0,0.23172651]
[1748878309229,0.19862369,104370.0,104360.0,0.0305]
[1748878309457,0.02874296,104370.0,104360.0,0.23172651]
[1748878309671,0.2203689,104370.0,104360.0,0.0305]
[1748878310442,0.00488854,104370.0,104360.0,0.24130808]
[1748878310667,0.44950854,104380.0,104370.0,0.0157]
[1748878310896,0.64113288,104380.0,104370.0,0.0157]
[1748878312026,0.64313288,104380.0,104370.0,0.0157]
[1748878312476,0.64413288,104380.0,104370.0,0.0308]
[1748878313404,0.45250854,104380.0,104370.0,0.24158788]
[1748878313622,0.46208818,104380.0,104370.0,0.56498807]
[1748878313867,0.49082847,104380.0,104370.0,0.56498816]
[1748878314097,0.49082847,104380.0,104370.0,0.56498825]
[1748878314307,0.68243605,104380.0,104370.0,0.56498825]
[1748878314528,0.68243605,104380.0,104370.0,0.66280714]
[1748878314720,0.66327659,104380.0,104370.0,0.4616]
[1748878316145,0.66327659,104380.0,104370.0,0.47118129]
[1748878316372,0.66327659,104380.0,104370.0,0.4616]
[1748878316595,0.21376805,104380.0,104370.0,0.4616]
[1748878317932,0.2137675,104380.0,104370.0,0.65322594]
[1748878318135,0.2137675,104380.0,104370.0,0.66280714]
[1748878318136,0.02215992,104380.0,104370.0,0.66280714]
[1748878318342,0.22334787,104380.0,104370.0,0.66280714]
[1748878319183,0.22334787,104380.0,104370.0,0.4616]
[1748878319496,0.02215992,104380.0,104370.0,0.67238816]
[1748878319701,0.003,104380.0,104370.0,0.22242594]
[1748878319908,0.02215937,104380.0,104370.0,0.62827378]
[1748878322243,0.003,104380.0,104370.0,0.72412808]
[1748878322658,0.01257973,104380.0,104370.0,0.72412808]
[1748878322859,0.003,104380.0,104370.0,0.72412808]
[1748878323283,0.001,104380.0,104370.0,1.06412808]
[1748878324443,0.27217723,104400.0,104390.0,0.0813]
[1748878324688,0.2107275,104400.0,104390.0,0.40458]
[1748878326079,0.25136323,104400.0,104390.0,0.40458]
[1748878326299,0.27958645,104400.0,104390.0,0.40458]
[1748878326679,0.28158645,104400.0,104390.0,0.40458]
[1748878326885,0.28158645,104400.0,104380.0,0.3727]
[1748878326886,0.2011685,104390.0,104380.0,0.3727]
[1748878327228,0.21074768,104390.0,104380.0,0.5109]
[1748878327795,0.21074768,104390.0,104380.0,0.71204786]
[1748878328019,0.21074768,104390.0,104380.0,0.72162823]
[1748878328400,0.21074768,104390.0,104380.0,0.72162814]
[1748878328629,0.21074768,104390.0,104380.0,0.71204795]
[1748878328835,0.21074768,104390.0,104380.0,0.51086]
[1748878329036,0.21074768,104390.0,104380.0,0.52044037]
[1748878329237,0.21074768,104390.0,104380.0,0.71204795]
[1748878329392,0.21074768,104390.0,104380.0,0.72162823]
[1748878329717,0.21074768,104390.0,104380.0,0.51086]
[1748878329926,0.21079605,104390.0,104380.0,0.71204777]
[1748878330076,0.21079605,104390.0,104380.0,0.71204795]
[1748878330448,0.21079605,104390.0,104380.0,0.71196795]
[1748878330798,0.21079605,104390.0,104380.0,0.72154814]
[1748878331000,0.21079605,104390.0,104380.0,0.51078]
[1748878331211,0.20121687,104390.0,104380.0,0.51078]
[1748878331582,0.20121687,104390.0,104380.0,0.52036037]
[1748878332004,0.20121687,104390.0,104380.0,0.51078]
[1748878332616,0.20121687,104390.0,104380.0,0.4465]
[1748878332799,0.20121687,104390.0,104380.0,0.0161]
[1748878333173,0.20121687,104390.0,104380.0,0.4465]
[1748878334426,0.20118777,104380.0,104370.0,0.0305]
[1748878334661,0.20118777,104380.0,104370.0,0.17244]
[1748878334897,0.20118777,104380.0,104370.0,0.49556]
[1748878335613,0.20118777,104380.0,104370.0,0.43036]
[1748878336118,0.20118777,104380.0,104370.0,0.43136]
[1748878336378,0.20118777,104380.0,104340.0,0.38010506]
[1748878336379,0.36818527,104380.0,104340.0,0.38010506]
[1748878336616,0.36818527,104380.0,104340.0,1.0365461]
[1748878336617,0.22041142,104350.0,104340.0,1.0365461]
[1748878337095,0.28751257,104370.0,104350.0,0.26704571]
[1748878337096,0.19165827,104370.0,104350.0,0.26704571]
[1748878337335,0.19165827,104370.0,104360.0,0.53392808]
[1748878337336,0.02748117,104370.0,104360.0,0.53392808]
[1748878337571,0.01916148,104370.0,104360.0,0.63158633]
[1748878337783,0.22036853,104370.0,104360.0,0.63158642]
[1748878337990,0.03837224,104370.0,104360.0,0.67236835]
[1748878338196,0.03837224,104370.0,104360.0,0.68195019]
[1748878338409,0.03837224,104370.0,104360.0,0.74531682]
[1748878338410,4.836e-05,104370.0,104360.0,0.74531682]
[1748878338617,4.836e-05,104370.0,104360.0,1.18117112]
[1748878338845,0.01915974,104380.0,104370.0,0.28749211]
[1748878339053,0.21076732,104380.0,104370.0,0.2874922]
[1748878339262,0.21076732,104380.0,104370.0,0.0825]
[1748878339485,0.20118759,104380.0,104370.0,0.0666]
[1748878340139,0.25118759,104380.0,104370.0,0.0666]
[1748878340350,0.25418759,104380.0,104370.0,0.0666]
[1748878340755,0.25518759,104380.0,104370.0,0.0666]
[1748878341619,0.25518759,104380.0,104370.0,0.0829]
[1748878342712,0.24560758,104380.0,104370.0,0.0829]
[1748878343909,0.07315974,104380.0,104370.0,0.29368788]
[1748878344120,0.07315965,104380.0,104370.0,0.303269]
[1748878344340,0.07315965,104380.0,104370.0,0.31284983]
[1748878344567,0.07315965,104380.0,104370.0,0.31284946]
[1748878344568,0.08273975,104380.0,104370.0,0.31284946]
[1748878344901,0.08273975,104380.0,104370.0,0.29368825]
[1748878345115,0.08273975,104380.0,104370.0,0.30326899]
[1748878345339,0.054,104380.0,104370.0,0.31663488]
[1748878345543,0.07315937,104380.0,104370.0,0.32621553]
[1748878345738,0.06357955,104380.0,104370.0,0.32621553]
[1748878345952,0.07315928,104380.0,104370.0,0.32621553]
[1748878346417,0.0827391,104380.0,104370.0,0.32621553]
[1748878346626,0.054,104380.0,104370.0,0.32621553]
[1748878346844,0.08273911,104380.0,104370.0,0.30705414]
[1748878347051,0.0923193,104380.0,104370.0,0.62047331]
[1748878347270,0.0923193,104380.0,104370.0,0.63963498]
[1748878347485,0.09231921,104380.0,104370.0,0.63005424]
[1748878347715,0.09231921,104380.0,104370.0,0.63963507]
[1748878347926,0.10189958,104380.0,104370.0,0.63005424]
[1748878348149,0.09231921,104380.0,104370.0,0.63005424]
[1748878348376,0.09231921,104380.0,104370.0,0.63963507]
[1748878348588,0.09231921,104380.0,104370.0,0.63005424]
[1748878348816,0.05612431,104390.0,104370.0,0.63005424]
[1748878349066,0.06805254,104400.0,104390.0,0.21726869]
[1748878349287,0.00957771,104400.0,104390.0,0.57538696]
[1748878349503,0.05887704,104400.0,104390.0,0.56580787]
[1748878349711,0.01915579,104400.0,104390.0,0.58496577]
[1748878349918,0.02873351,104400.0,104390.0,0.58496577]
[1748878350337,0.015,104400.0,104390.0,0.58596577]
[1748878350539,0.015,104400.0,104390.0,0.73560513]
[1748878350757,0.021,104400.0,104390.0,1.07660513]
[1748878351412,0.02113905,104400.0,104390.0,1.07660513]
[1748878352033,0.01513905,104400.0,104390.0,1.07560513]
[1748878352231,0.01513905,104400.0,104390.0,1.07760513]
[1748878352435,0.03896153,104400.0,104390.0,1.07660513]
[1748878352664,0.00013905,104400.0,104390.0,1.07460513]
[1748878352876,0.00013905,104400.0,104390.0,1.07660513]
[1748878353080,0.00013905,104400.0,104390.0,1.07760513]
[1748878353286,0.00013905,104400.0,104390.0,1.0671]
[1748878353484,0.00971676,104400.0,104390.0,0.86588513]
[1748878353754,0.00013905,104400.0,104390.0,1.18876513]
[1748878354716,0.00013905,104400.0,104390.0,0.75486007]
[1748878354917,0.01929475,104400.0,104390.0,1.18872513]
[1748878355384,0.02887292,104400.0,104390.0,1.18872513]
[1748878355598,0.01929475,104400.0,104390.0,1.18872513]
[1748878355782,0.02887283,104400.0,104390.0,0.80630632]
[1748878356005,0.23002262,104400.0,104390.0,0.64582923]
[1748878356203,0.24798216,104400.0,104390.0,0.80295946]
[1748878356362,0.23002317,104400.0,104390.0,0.81253882]
[1748878356583,0.23002317,104400.0,104390.0,0.57404805]
[1748878356781,0.23002317,104400.0,104390.0,0.99454869]
[1748878356981,0.23002317,104400.0,104390.0,1.00408805]
[1748878357384,0.26797845,104400.0,104390.0,1.01366732]
[1748878358617,0.03809433,104400.0,104390.0,1.09902494]
[1748878358781,0.03809433,104400.0,104390.0,1.10281]
[1748878359000,0.03809433,104400.0,104390.0,1.1986643]
[1748878359206,0.03809433,104400.0,104390.0,0.8758643]
[1748878359406,0.03809433,104400.0,104390.0,1.1986243]
[1748878359617,0.04767204,104400.0,104390.0,1.1986243]
[1748878359820,0.03809433,104400.0,104390.0,1.1986243]
[1748878361845,0.04767214,104400.0,104390.0,1.1986243]
[1748878362047,0.03809433,104400.0,104390.0,1.1986243]
[1748878365206,0.03809433,104400.0,104390.0,1.19483924]
[1748878365461,0.03809433,104400.0,104390.0,1.1986243]
[1748878365645,0.03809433,104400.0,104390.0,1.19483924]
[1748878365939,0.03809433,104400.0,104390.0,1.1986243]
[1748878366617,0.06682848,104400.0,104390.0,0.79688722]
[1748878366795,0.26797781,104400.0,104390.0,0.36708506]
[1748878366954,0.24882192,104400.0,104390.0,0.48664]
[1748878367403,0.26678146,104400.0,104390.0,0.43664]
[1748878367577,0.24882192,104400.0,104390.0,0.67822923]
[1748878367787,0.24882192,104400.0,104390.0,0.69342923]
[1748878368002,0.24882192,104400.0,104390.0,0.45184]
[1748878368215,0.24882192,104400.0,104390.0,0.50184]
[1748878368625,0.24882192,104400.0,104390.0,0.70300869]
[1748878368828,0.25840046,104400.0,104390.0,0.71258805]
[1748878369049,0.25840046,104400.0,104390.0,0.73736714]
[1748878369273,0.25839964,104400.0,104390.0,0.49617946]
[1748878369466,0.07640721,104400.0,104390.0,0.72764787]
[1748878369696,0.26797873,104400.0,104390.0,0.71806869]
[1748878369898,0.06682931,104400.0,104390.0,0.72764787]
[1748878370098,0.06682931,104400.0,104390.0,0.76314255]
[1748878370099,0.04767223,104400.0,104390.0,0.76314255]
[1748878370372,0.07640693,104400.0,104390.0,0.72464777]
[1748878370591,0.07640693,104400.0,104390.0,0.73422686]
[1748878370787,0.07640693,104400.0,104390.0,0.73622686]
[1748878371142,0.07640693,104400.0,104390.0,0.73222686]
[1748878371625,0.26797781,104400.0,104390.0,0.72364777]
[1748878371816,0.26797781,104400.0,104390.0,0.73322704]
[1748878372380,0.26797781,104400.0,104390.0,0.66406859]
[1748878372570,0.25839991,104400.0,104390.0,0.71406859]
[1748878372776,0.04767204,104400.0,104390.0,0.73322695]
[1748878372992,0.04767204,104400.0,104390.0,0.84244512]
[1748878372993,0.03809433,104400.0,104390.0,0.84244512]
[1748878373857,0.03809433,104400.0,104390.0,1.18244512]
[1748878374268,0.00013905,104400.0,104390.0,1.18244512]
[1748878381174,0.00013905,104400.0,104390.0,0.85026631]
[1748878381386,0.01929475,104400.0,104390.0,1.18220512]
[1748878381596,0.03845101,104400.0,104390.0,1.18220522]
[1748878381799,0.01929457,104400.0,104390.0,1.19178403]
[1748878382000,0.00971676,104400.0,104390.0,1.19178403]
[1748878382213,0.04793995,104400.0,104390.0,1.19178403]
[1748878382422,0.03836224,104400.0,104390.0,1.19178403]
[1748878382619,0.04794005,104400.0,104390.0,1.19178403]
[1748878383030,0.05751813,104400.0,104390.0,1.19178403]